[Event "72nd RUS-ch Higher League 2019"]
[Site "Yaroslavl"]
[Date "2019.07.03"]
[Round "6.21"]
[White "Samojlov, Anton"]
[Black "Levin, Evgeny A."]
[Result "1/2-1/2"]
[ECO "E21"]
[WhiteElo "2350"]
[BlackElo "2504"]
[Annotator "ChessBase"]
[PlyCount "80"]
[EventDate "2019.06.27"]
[EventType "swiss"]
[EventCountry "RUS"]
[SourceTitle "playchess.com"]
[Source "ChessBase"]
[SourceQuality "1"]
[TimeControl "40/5400+30:1800+30"]

1. d4 {[%emt 0:00:00]} Nf6 {[%emt 0:00:00]} 2. c4 {[%emt 0:00:00]} e6 {[%emt 0:00:00]} 3. Nf3 {[%emt 0:00:00]} b6 {[%emt 0:00:08]} 4. Nc3 {[%emt 0:00:15]} Bb7 {[%emt 0:00:44]} 5. e3 {[%emt 0:00:33]} d5 {[%emt 0:02:44]} 6. cxd5 {[%emt 0:00:16]} exd5 {[%emt 0:00:05]} 7. Bb5+ {[%emt 0:00:11]} c6 {[%emt 0:00:21]} 8. Bd3 {[%emt 0:00:07]} Nbd7 {[%emt 0:00:09]} 9. O-O {[%emt 0:05:23]} Bd6 {[%emt 0:05:02]} 10. e4 {[%emt 0:02:07]} dxe4 {[%emt 0:00:06]} 11. Nxe4 {[%emt 0:00:08]} Nxe4 {[%emt 0:00:06]} 12. Bxe4 {[%emt 0:00:13]} O-O {[%emt 0:00:57]} 13. Bg5 {[%emt 0:06:17]} Qc7 {[%emt 0:01:51]} 14. Qc2 {[%emt 0:09:34]} h6 {[%emt 0:01:51]} 15. Bh4 {[%emt 0:00:09]} Rfe8 {[%emt 0:19:13]} 16. Rac1 {[%emt 0:12:45]} c5 {[%emt 0:06:54]} 17. Bxb7 {[%emt 0:01:50]} Qxb7 {[%emt 0:00:35]} 18. Rcd1 {[%emt 0:11:58]} Nf8 {[%emt 0:07:50]} 19. Bg3 {[%emt 0:04:11]} Bxg3 {[%emt 0:02:36]} 20. hxg3 {[%emt 0:00:29]} Nd7 {[%emt 0:18:06]} 21. Rfe1 {[%emt 0:03:32]} cxd4 {[%emt 0:01:44]} 22. Rxe8+ {[%emt 0:02:33]} Rxe8 {[%emt 0:00:04]} 23. Nxd4 {[%emt 0:00:09]} Rc8 {[%emt 0:16:10]} 24. Qe2 {[%emt 0:02:06]} Nf6 {[%emt 0:01:11]} 25. Nf5 {[%emt 0:11:54]} Re8 {[%emt 0:00:13]} 26. Ne3 {[%emt 0:05:37]} Qe4 {[%emt 0:03:09]} 27. b3 {[%emt 0:06:22]} Nd5 {[%emt 0:03:30]} 28. Rd3 {[%emt 0:03:18]} Nxe3 {[%emt 0:01:16]} 29. Rxe3 {[%emt 0:01:12]} Qb1+ {[%emt 0:00:04]} 30. Kh2 {[%emt 0:01:29]} Rxe3 {[%emt 0:00:37]} 31. fxe3 {[%emt 0:00:47]} Qe4 {[%emt 0:03:19]} 32. Qa6 {[%emt 0:01:34]} Qe7 {[%emt 0:00:45]} 33. Qd3 {[%emt 0:03:45]} g6 {[%emt 0:00:51]} 34. a4 {[%emt 0:01:06]} h5 {[%emt 0:01:01]} 35. Qd4 {[%emt 0:02:08]} Qa3 {[%emt 0:01:11]} 36. Qd8+ {[%emt 0:01:08]} Kg7 {[%emt 0:00:42]} 37. Qd4+ {[%emt 0:00:18]} Kg8 {[%emt 0:00:06]} 38. Qd8+ {[%emt 0:00:09]} Kg7 {[%emt 0:00:04]} 39. Qd4+ {[%emt 0:00:05]} Kg8 {[%emt 0:00:04]} 40. Qd8+ {[%emt 0:00:00]} Kg7 {[%emt 0:00:00]} 1/2-1/2

[Event "72nd RUS-ch Higher League 2019"]
[Site "Yaroslavl"]
[Date "2019.07.03"]
[Round "6.22"]
[White "Drygalov, Andrey"]
[Black "Bigaliev, Renat"]
[Result "1-0"]
[ECO "D12"]
[WhiteElo "2494"]
[BlackElo "2427"]
[Annotator "ChessBase"]
[PlyCount "83"]
[EventDate "2019.06.27"]
[EventType "swiss"]
[EventCountry "RUS"]
[SourceTitle "playchess.com"]
[Source "ChessBase"]
[SourceQuality "1"]
[TimeControl "40/5400+30:1800+30"]

1. d4 {[%emt 0:00:00]} d5 {[%emt 0:00:00]} 2. Nf3 {[%emt 0:00:00]} Nf6 {[%emt 0:00:19]} 3. c4 {[%emt 0:00:00]} c6 {[%emt 0:01:29]} 4. e3 {[%emt 0:00:00]} Bf5 {[%emt 0:02:43]} 5. Nc3 {[%emt 0:00:18]} e6 {[%emt 0:03:17]} 6. Nh4 {[%emt 0:00:03]} Be4 {[%emt 0:02:02]} 7. f3 {[%emt 0:00:04]} Bg6 {[%emt 0:00:06]} 8. Qb3 {[%emt 0:00:02]} Qc7 {[%emt 0:03:45]} 9. Bd2 {[%emt 0:00:33]} Be7 {[%emt 0:03:49]} 10. cxd5 {[%emt 0:00:42]} cxd5 {[%emt 0:07:42]} 11. Nxg6 {[%emt 0:00:05]} hxg6 {[%emt 0:00:05]} 12. O-O-O {[%emt 0:00:04]} Nc6 {[%emt 0:01:32]} 13. Kb1 {[%emt 0:00:13]} Nd7 {[%emt 0:14:09]} 14. Bd3 {[%emt 0:07:50]} Qb6 {[%emt 0:18:57]} 15. Qa4 {[%emt 0:03:30]} Qb4 {[%emt 0:01:26]} 16. Qc2 {[%emt 0:12:18]} Qd6 {[%emt 0:02:15]} 17. Qb3 {[%emt 0:05:49]} Qb4 {[%emt 0:03:10]} 18. Qxb4 {[%emt 0:02:11]} Bxb4 {[%emt 0:02:06]} 19. Rc1 {[%emt 0:01:11]} Nb6 {[%emt 0:06:23]} 20. a3 {[%emt 0:03:26]} Be7 {[%emt 0:02:38]} 21. Ne2 {[%emt 0:03:01]} Kd7 {[%emt 0:02:57]} 22. e4 {[%emt 0:04:03]} Rac8 {[%emt 0:02:02]} 23. h3 {[%emt 0:05:04]} a6 {[%emt 0:01:47]} 24. Ka2 {[%emt 0:03:49]} Na7 {[%emt 0:01:56]} 25. Rxc8 {[%emt 0:10:02]} Rxc8 {[%emt 0:01:06]} 26. b3 {[%emt 0:00:42]} Nb5 {[%emt 0:03:04]} 27. a4 {[%emt 0:05:23]} Na7 {[%emt 0:00:39]} 28. Kb2 {[%emt 0:07:48]} Nc6 {[%emt 0:00:57]} 29. e5 {[%emt 0:01:54]} Bb4 {[%emt 0:01:28]} 30. Be3 {[%emt 0:00:51]} Ne7 {[%emt 0:01:41]} 31. g4 {[%emt 0:01:02]} Rh8 {[%emt 0:00:21]} 32. h4 {[%emt 0:01:58]} Nc6 {[%emt 0:03:38]} 33. Ng3 {[%emt 0:02:05]} Be7 {[%emt 0:02:01]} 34. h5 {[%emt 0:00:38]} g5 {[%emt 0:01:20]} 35. Ne2 {[%emt 0:00:08]} f6 {[%emt 0:00:26]} 36. f4 {[%emt 0:00:46]} gxf4 {[%emt 0:00:54]} 37. Nxf4 {[%emt 0:01:19]} Bd8 {[%emt 0:01:57]} 38. Ng6 {[%emt 0:00:47]} Re8 {[%emt 0:02:00]} 39. exf6 {[%emt 0:00:11]} Bxf6 {[%emt 0:00:18]} 40. g5 {[%emt 0:00:00]} Bxd4+ {[%emt 0:00:00]} 41. Bxd4 {[%emt 0:00:22]} Nxd4 {[%emt 0:00:52]} 42. h6 {[%emt 0:00:08]} 1-0

[Event "72nd RUS-ch Higher League 2019"]
[Site "Yaroslavl"]
[Date "2019.07.03"]
[Round "6.23"]
[White "Airapetian, Gor"]
[Black "Sadovsky, Artem"]
[Result "1-0"]
[ECO "E15"]
[WhiteElo "2442"]
[BlackElo "2416"]
[Annotator "NA"]
[PlyCount "146"]
[EventDate "2019.06.27"]
[EventType "swiss"]
[EventCountry "RUS"]
[SourceTitle "playchess.com"]
[Source "ChessBase"]
[SourceQuality "1"]
[TimeControl "40/5400+30:1800+30"]

1. d4 {[%emt 0:00:00]} Nf6 {[%emt 0:00:01]} 2. c4 e6 {[%emt 0:00:17]} 3. Nf3 {[%emt 0:01:23]} b6 {[%emt 0:00:28]} 4. g3 {[%emt 0:00:45]} Bb4+ {[%emt 0:00:28]} 5. Bd2 {[%emt 0:00:28]} Bxd2+ {[%emt 0:01:01]} 6. Qxd2 {[%emt 0:00:42]} Bb7 {[%emt 0:00:21]} 7. Bg2 {[%emt 0:01:44]} O-O {[%emt 0:00:20]} 8. O-O {[%emt 0:06:37]} d5 {[%emt 0:00:24]} 9. Rc1 {[%emt 0:10:32]} dxc4 {[%emt 0:14:41]} 10. Rxc4 {[%emt 0:01:46]} Nbd7 {[%emt 0:02:04]} 11. Na3 {[%emt 0:05:37]} Bd5 {[%emt 0:03:44]} 12. Rc2 {[%emt 0:03:45]} c5 {[%emt 0:02:38]} 13. b4 {[%emt 0:09:58]} Ne4 {[%emt 0:07:19]} 14. Qe1 {[%emt 0:01:30]} cxd4 {[%emt 0:21:50]} 15. Nxd4 {[%emt 0:00:48]} Qf6 {[%emt 0:17:58]} 16. Rd1 {[%emt 0:01:48]} a5 {[%emt 0:02:33]} 17. f3 {[%emt 0:02:22]} Nd6 {[%emt 0:02:04]} 18. e4 {[%emt 0:06:55]} Bb7 {[%emt 0:01:00]} 19. Nc6 {[%emt 0:08:48]} e5 {[%emt 0:09:49]} 20. Qd2 {[%emt 0:04:47]} Nb5 {[%emt 0:06:59]} 21. Nxb5 {[%emt 0:23:25]} Bxc6 {[%emt 0:00:09]} 22. Nc7 {[%emt 0:02:05]} Rac8 {[%emt 0:00:14]} 23. b5 {[%emt 0:00:53]} Nc5 {[%emt 0:01:04]} 24. Nd5 {[%emt 0:04:13]} Bxd5 {[%emt 0:00:06]} 25. exd5 {[%emt 0:00:01]} Qd6 {[%emt 0:00:14]} 26. Bh3 {[%emt 0:00:09]} f5 {[%emt 0:00:10]} 27. Qe3 {[%emt 0:00:18]} Rce8 {[%emt 0:00:31]} 28. Rc4 {[%emt 0:00:19]} f4 {[%emt 0:01:56]} 29. Qe1 {[%emt 0:01:32]} Kh8 {[%emt 0:02:31]} 30. Kh1 {[%emt 0:01:11]} g5 {[%emt 0:01:10]} 31. gxf4 {[%emt 0:00:16]} gxf4 {[%emt 0:00:40]} 32. Rc2 {[%emt 0:00:48]} Rg8 {[%emt 0:00:26]} 33. Re2 {[%emt 0:00:28]} Rg5 {[%emt 0:00:15]} 34. Bg4 {[%emt 0:00:16]} Reg8 {[%emt 0:00:37]} 35. h4 {[%emt 0:00:36]} Rxg4 {[%emt 0:00:48]} 36. fxg4 {[%emt 0:00:02]} e4 {[%emt 0:00:37]} 37. Rxe4 {[%emt 0:00:57]} Nxe4 {[%emt 0:00:12]} 38. Qxe4 {[%emt 0:00:01]} Rxg4 {[%emt 0:00:19]} 39. Qd4+ {[%emt 0:00:42]} Kg8 {[%emt 0:00:05]} 40. Rg1 {[%emt 0:00:00]} h5 {[%emt 0:00:00]} 41. Qe4 {[%emt 0:02:06]} Kg7 {[%emt 0:03:46]} 42. Qf5 {[%emt 0:02:33]} Rxg1+ {[%emt 0:14:17]} 43. Kxg1 {[%emt 0:00:04]} Qc5+ {[%emt 0:00:19]} 44. Kg2 {[%emt 0:00:06]} Qxb5 {[%emt 0:02:30]} 45. Qe5+ {[%emt 0:00:41]} Kf8 {[%emt 0:01:36]} 46. Qxf4+ {[%emt 0:04:05]} Ke7 {[%emt 0:00:32]} 47. Qe5+ {[%emt 0:00:36]} Kd7 {[%emt 0:01:13]} 48. Qxh5 {[%emt 0:00:49]} Qb2+ {[%emt 0:00:18]} 49. Kg3 {[%emt 0:01:46]} Qxa2 {[%emt 0:06:24]} 50. Qf7+ {[%emt 0:00:06]} Kd6 {[%emt 0:03:37]} 51. Qe6+ {[%emt 0:01:16]} Kc5 {[%emt 0:00:05]} 52. Qc6+ {[%emt 0:00:04]} Kd4 {[%emt 0:00:03]} 53. d6 {[%emt 0:00:42]} Qg8+ {[%emt 0:00:26]} 54. Kh2 {[%emt 0:00:10]} Qe6 {[%emt 0:01:43]} 55. Qxb6+ {[%emt 0:11:58]} Kd5 {[%emt 0:00:15]} 56. h5 {[%emt 0:00:17]} Qe5+ {[%emt 0:00:54]} 57. Kg2 {[%emt 0:00:45]} Qg5+ {[%emt 0:00:43]} 58. Kf1 {[%emt 0:01:34]} Qc1+ {[%emt 0:00:56]} 59. Ke2 {[%emt 0:01:10]} Qc2+ {[%emt 0:00:32]} 60. Kf3 {[%emt 0:00:42]} Qf5+ {[%emt 0:00:24]} 61. Ke3 {[%emt 0:00:37]} Qe4+ {[%emt 0:01:17]} 62. Kd2 {[%emt 0:00:14]} Qg2+ {[%emt 0:00:36]} 63. Kc3 {[%emt 0:00:57]} Qf3+ {[%emt 0:00:13]} 64. Kb2 {[%emt 0:00:33]} Qe2+ {[%emt 0:00:43]} 65. Ka3 {[%emt 0:00:17]} Ke6 {[%emt 0:00:30]} 66. h6 {[%emt 0:00:39]} a4 {[%emt 0:00:29]} 67. h7 {[%emt 0:01:30]} Qd3+ {[%emt 0:00:35]} 68. Kxa4 {[%emt 0:00:08]} Qc4+ {[%emt 0:00:30]} 69. Ka5 {[%emt 0:03:18]} Qa2+ {[%emt 0:00:08]} 70. Kb5 {[%emt 0:00:33]} Qe2+ {[%emt 0:00:33]} 71. Kc6 {[%emt 0:01:47]} Qe4+ {[%emt 0:00:07]} 72. Kc7 {[%emt 0:00:28]} Qc2+ 73. Kb7 Qxh7+ 1-0

[Event "72nd RUS-ch Higher League 2019"]
[Site "Yaroslavl"]
[Date "2019.07.03"]
[Round "6.25"]
[White "Kardashevskiy, Evgeny"]
[Black "Eraschenkov, Denis"]
[Result "1-0"]
[ECO "A40"]
[WhiteElo "2429"]
[BlackElo "2379"]
[Annotator "NA"]
[PlyCount "41"]
[EventDate "2019.06.27"]
[EventType "swiss"]
[EventCountry "RUS"]
[SourceTitle "playchess.com"]
[Source "ChessBase"]
[SourceQuality "1"]
[TimeControl "40/5400+30:1800+30"]

1. d4 {[%emt 0:00:00]} g6 {[%emt 0:00:00]} 2. Nf3 {[%emt 0:00:05]} Bg7 {[%emt 0:00:00]} 3. c4 {[%emt 0:00:14]} d6 {[%emt 0:00:07]} 4. Nc3 {[%emt 0:00:34]} e5 {[%emt 0:00:15]} 5. g3 {[%emt 0:00:41]} Nd7 {[%emt 0:00:23]} 6. Bg2 {[%emt 0:01:47]} Ne7 {[%emt 0:00:56]} 7. O-O {[%emt 0:01:12]} O-O {[%emt 0:00:39]} 8. e4 {[%emt 0:06:57]} exd4 {[%emt 0:03:11]} 9. Nxd4 {[%emt 0:01:32]} Nc6 {[%emt 0:00:41]} 10. Nxc6 {[%emt 0:11:18]} bxc6 {[%emt 0:00:08]} 11. Qc2 {[%emt 0:01:13]} Ne5 {[%emt 0:40:01]} 12. b3 {[%emt 0:15:13]} f5 {[%emt 0:09:01]} 13. f4 {[%emt 0:13:56]} Ng4 {[%emt 0:00:10]} 14. h3 {[%emt 0:02:47]} Qf6 {[%emt 0:16:28]} 15. e5 {[%emt 0:02:24]} dxe5 {[%emt 0:01:22]} 16. hxg4 {[%emt 0:00:48]} exf4 {[%emt 0:00:13]} 17. Bxf4 {[%emt 0:00:35]} Qxc3 {[%emt 0:03:45]} 18. Qxc3 {[%emt 0:00:24]} Bxc3 {[%emt 0:00:07]} 19. Rad1 {[%emt 0:00:18]} Ba5 {[%emt 0:13:45]} 20. Bxc6 {[%emt 0:03:52]} Rb8 {[%emt 0:00:07]} 21. Bh6 {[%emt 0:03:15]} 1-0

[Event "72nd RUS-ch Higher League 2019"]
[Site "Yaroslavl"]
[Date "2019.07.03"]
[Round "6.26"]
[White "Nozdrachev, Vladislav"]
[Black "Rychkov, Oleg"]
[Result "1-0"]
[ECO "B31"]
[WhiteElo "2481"]
[BlackElo "2409"]
[Annotator "ChessBase"]
[PlyCount "69"]
[EventDate "2019.06.27"]
[EventType "swiss"]
[EventCountry "RUS"]
[SourceTitle "playchess.com"]
[Source "ChessBase"]
[SourceQuality "1"]
[TimeControl "40/5400+30:1800+30"]

1. e4 {[%emt 0:00:00]} c5 {[%emt 0:00:00]} 2. Nf3 {[%emt 0:00:30]} Nc6 {[%emt 0:00:01]} 3. Bb5 {[%emt 0:00:05]} g6 {[%emt 0:00:15]} 4. Bxc6 {[%emt 0:00:14]} dxc6 {[%emt 0:00:13]} 5. d3 {[%emt 0:00:05]} Bg7 {[%emt 0:00:24]} 6. h3 {[%emt 0:00:05]} Nf6 {[%emt 0:00:25]} 7. O-O {[%emt 0:01:59]} Nd7 {[%emt 0:00:17]} 8. a4 {[%emt 0:02:33]} e5 {[%emt 0:02:13]} 9. a5 {[%emt 0:01:47]} Nf8 {[%emt 0:01:16]} 10. Nbd2 {[%emt 0:01:09]} Ne6 {[%emt 0:01:19]} 11. Nc4 {[%emt 0:00:05]} Qc7 {[%emt 0:00:30]} 12. Be3 {[%emt 0:07:35]} O-O {[%emt 0:08:35]} 13. c3 {[%emt 0:01:38]} h6 {[%emt 0:02:03]} 14. Qc1 {[%emt 0:09:35]} Kh7 {[%emt 0:01:43]} 15. b3 {[%emt 0:01:22]} f5 {[%emt 0:08:32]} 16. exf5 {[%emt 0:02:30]} Rxf5 {[%emt 0:00:45]} 17. Re1 {[%emt 0:01:32]} Nf4 {[%emt 0:09:56]} 18. Bxf4 {[%emt 0:13:52]} exf4 {[%emt 0:00:07]} 19. Ra2 {[%emt 0:00:05]} Rd5 {[%emt 0:03:30]} 20. Rae2 {[%emt 0:04:12]} Bf5 {[%emt 0:02:05]} 21. d4 {[%emt 0:01:03]} cxd4 {[%emt 0:06:35]} 22. Nxd4 {[%emt 0:03:49]} Rf8 {[%emt 0:00:14]} 23. Re7 {[%emt 0:01:36]} Rd7 {[%emt 0:00:28]} 24. Ne6 {[%emt 0:00:21]} Bxe6 {[%emt 0:00:33]} 25. R7xe6 {[%emt 0:00:05]} Rf5 {[%emt 0:06:46]} 26. Qc2 {[%emt 0:01:46]} h5 {[%emt 0:00:40]} 27. b4 {[%emt 0:05:50]} f3 {[%emt 0:04:51]} 28. Rxg6 {[%emt 0:06:35]} Kxg6 {[%emt 0:00:08]} 29. Re6+ {[%emt 0:00:19]} Kg5 {[%emt 0:06:10]} 30. h4+ {[%emt 0:00:50]} Kxh4 {[%emt 0:00:16]} 31. Ne3 {[%emt 0:00:07]} Rf6 {[%emt 0:02:11]} 32. Rxf6 {[%emt 0:01:14]} Bxf6 {[%emt 0:00:11]} 33. Qg6 {[%emt 0:00:39]} Rd1+ {[%emt 0:14:07]} 34. Nxd1 {[%emt 0:00:19]} Bg5 {[%emt 0:00:03]} 35. g3+ {[%emt 0:00:18]} 1-0

[Event "72nd RUS-ch Higher League 2019"]
[Site "Yaroslavl"]
[Date "2019.07.03"]
[Round "6.27"]
[White "Bykov, Oleg"]
[Black "Drygalov, Sergey"]
[Result "1/2-1/2"]
[ECO "E35"]
[WhiteElo "2401"]
[BlackElo "2492"]
[Annotator "ChessBase"]
[PlyCount "81"]
[EventDate "2019.06.27"]
[EventType "swiss"]
[EventCountry "RUS"]
[SourceTitle "playchess.com"]
[Source "ChessBase"]
[SourceQuality "1"]
[TimeControl "40/5400+30:1800+30"]

1. d4 {[%emt 0:00:00]} Nf6 {[%emt 0:00:00]} 2. c4 {[%emt 0:00:00]} e6 {[%emt 0:00:00]} 3. Nc3 {[%emt 0:00:00]} Bb4 {[%emt 0:00:00]} 4. Qc2 {[%emt 0:00:00]} d5 {[%emt 0:00:00]} 5. cxd5 {[%emt 0:01:06]} exd5 {[%emt 0:00:00]} 6. Bg5 {[%emt 0:00:07]} h6 {[%emt 0:00:00]} 7. Bh4 {[%emt 0:00:07]} g5 {[%emt 0:00:00]} 8. Bg3 {[%emt 0:00:05]} Nc6 {[%emt 0:00:00]} 9. e3 {[%emt 0:00:46]} h5 {[%emt 0:00:01]} 10. Bb5 {[%emt 0:03:33]} h4 {[%emt 0:02:03]} 11. Be5 {[%emt 0:05:25]} Rh6 {[%emt 0:00:28]} 12. h3 {[%emt 0:13:31]} Bd7 {[%emt 0:00:24]} 13. Bh2 {[%emt 0:03:03]} Qe7 {[%emt 0:11:19]} 14. Nf3 {[%emt 0:10:49]} Ne4 {[%emt 0:02:23]} 15. a3 {[%emt 0:12:06]} Bxc3+ {[%emt 0:03:29]} 16. bxc3 {[%emt 0:00:05]} O-O-O {[%emt 0:00:33]} 17. c4 {[%emt 0:05:10]} g4 {[%emt 0:27:42]} 18. hxg4 {[%emt 0:04:43]} Bxg4 {[%emt 0:19:14]} 19. Bxc6 {[%emt 0:09:38]} h3 {[%emt 0:00:41]} 20. Ne5 {[%emt 0:12:16]} hxg2 {[%emt 0:01:58]} 21. Rg1 {[%emt 0:00:17]} Rxh2 {[%emt 0:08:58]} 22. Bxd5 {[%emt 0:14:23]} Nf6 {[%emt 0:12:54]} 23. Bxb7+ {[%emt 0:03:19]} Kxb7 {[%emt 0:00:38]} 24. Rb1+ {[%emt 0:00:54]} Kc8 {[%emt 0:04:35]} 25. Qa4 {[%emt 0:00:20]} Qxe5 {[%emt 0:03:36]} 26. dxe5 {[%emt 0:00:01]} Ne4 {[%emt 0:00:54]} 27. f3 {[%emt 0:00:46]} Bxf3 {[%emt 0:00:56]} 28. e6 {[%emt 0:00:04]} fxe6 {[%emt 0:00:28]} 29. Qc6 {[%emt 0:00:03]} Rh1 {[%emt 0:00:41]} 30. Qxe6+ {[%emt 0:00:06]} Rd7 {[%emt 0:00:04]} 31. Qe8+ {[%emt 0:02:00]} Rd8 {[%emt 0:00:03]} 32. Qe6+ {[%emt 0:00:02]} Rd7 {[%emt 0:00:03]} 33. Qe8+ {[%emt 0:00:41]} Rd8 {[%emt 0:00:01]} 34. Qe6+ {[%emt 0:00:18]} Rd7 {[%emt 0:00:05]} 35. Qe8+ {[%emt 0:00:02]} Rd8 {[%emt 0:00:04]} 36. Qe6+ {[%emt 0:00:04]} Rd7 {[%emt 0:00:03]} 37. Qe8+ {[%emt 0:00:03]} Rd8 {[%emt 0:00:02]} 38. Qe6+ {[%emt 0:00:03]} Rd7 {[%emt 0:00:03]} 39. Qe8+ {[%emt 0:00:04]} Rd8 {[%emt 0:00:02]} 40. Qe6+ {[%emt 0:00:00]} Rd7 {[%emt 0:00:00]} 41. Qe8+ {[%emt 0:00:46]} 1/2-1/2

[Event "72nd RUS-ch Higher League 2019"]
[Site "Yaroslavl"]
[Date "2019.07.04"]
[Round "7.6"]
[White "Kokarev, Dmitry"]
[Black "Chigaev, Maksim"]
[Result "1/2-1/2"]
[ECO "C85"]
[WhiteElo "2609"]
[BlackElo "2640"]
[Annotator "RC"]
[PlyCount "99"]
[EventDate "2019.06.27"]
[EventType "swiss"]
[EventCountry "RUS"]
[SourceTitle "playchess.com"]
[Source "ChessBase"]
[SourceQuality "1"]
[TimeControl "40/5400+30:1800+30"]

1. e4 {[%emt 0:00:00]} e5 {[%emt 0:00:00]} 2. Nf3 {[%emt 0:00:00]} Nc6 {[%emt 0:00:00]} 3. Bb5 {[%emt 0:00:00]} a6 {[%emt 0:00:00]} 4. Ba4 {[%emt 0:00:00]} Nf6 {[%emt 0:00:00]} 5. O-O {[%emt 0:00:07]} Be7 {[%emt 0:00:00]} 6. Bxc6 {[%emt 0:00:12]} dxc6 {[%emt 0:00:02]} 7. d3 {[%emt 0:00:08]} Nd7 {[%emt 0:00:05]} 8. b3 {[%emt 0:00:08]} f6 {[%emt 0:00:52]} 9. Bb2 {[%emt 0:00:33]} O-O {[%emt 0:01:22]} 10. Qe2 {[%emt 0:00:07]} a5 {[%emt 0:00:10]} 11. d4 {[%emt 0:03:05]} exd4 {[%emt 0:01:14]} 12. Nxd4 {[%emt 0:00:06]} Nc5 {[%emt 0:06:58]} 13. a4 {[%emt 0:00:31]} Qe8 {[%emt 0:01:22]} 14. Nd2 {[%emt 0:00:52]} Qf7 {[%emt 0:03:45]} 15. f4 {[%emt 0:04:07]} Re8 {[%emt 0:00:54]} 16. N2f3 {[%emt 0:10:15]} Ne6 {[%emt 0:22:24]} 17. Nxe6 {[%emt 0:05:05]} Bxe6 {[%emt 0:02:01]} 18. h3 {[%emt 0:01:22]} Rad8 {[%emt 0:04:34]} 19. Kh1 {[%emt 0:07:49]} c5 {[%emt 0:06:11]} 20. c4 {[%emt 0:04:30]} b6 {[%emt 0:00:46]} 21. Rae1 {[%emt 0:05:11]} Bc8 {[%emt 0:01:44]} 22. Qc2 {[%emt 0:10:43]} Bb7 {[%emt 0:03:53]} 23. Kg1 {[%emt 0:06:09]} Qg6 {[%emt 0:20:20]} 24. Nh4 {[%emt 0:04:50]} Qg3 {[%emt 0:01:50]} 25. Nf5 {[%emt 0:00:15]} Qd3 {[%emt 0:00:06]} 26. Qxd3 {[%emt 0:00:25]} Rxd3 {[%emt 0:00:09]} 27. Rf3 {[%emt 0:00:37]} Rxf3 {[%emt 0:04:44]} 28. gxf3 {[%emt 0:04:17]} Bf8 {[%emt 0:10:43]} 29. Kf2 {[%emt 0:02:59]} Rd8 {[%emt 0:01:35]} 30. Ke2 {[%emt 0:00:30]} Kf7 {[%emt 0:00:07]} 31. Ne3 {[%emt 0:08:34]} c6 {[%emt 0:00:17]} 32. f5 {[%emt 0:03:11]} Ba6 {[%emt 0:02:59]} 33. Bc3 {[%emt 0:02:00]} Bc8 {[%emt 0:00:31]} 34. Ng4 {[%emt 0:06:24]} Be7 {[%emt 0:01:15]} 35. Rg1 {[%emt 0:00:15]} Bd6 {[%emt 0:03:26]} 36. h4 {[%emt 0:03:42]} Bf4 {[%emt 0:00:45]} 37. h5 {[%emt 0:00:29]} h6 {[%emt 0:00:07]} 38. Nf2 {[%emt 0:00:16]} Bc7 {[%emt 0:00:16]} 39. Nd3 {[%emt 0:01:29]} Bd7 {[%emt 0:00:29]} 40. Be1 {[%emt 0:00:00]} Re8 {[%emt 0:00:00]} 41. Kd2 {[%emt 0:01:43]} Rd8 {[%emt 0:05:11]} 42. Bg3 {[%emt 0:01:26]} Bxg3 {[%emt 0:00:06]} 43. Rxg3 {[%emt 0:00:03]} Be8 {[%emt 0:00:09]} 44. Ke2 {[%emt 0:03:27]} Kf8 {[%emt 0:00:07]} 45. Nf4 {[%emt 0:01:09]} Bf7 {[%emt 0:00:06]} 46. Ng6+ {[%emt 0:02:39]} Bxg6 {[%emt 0:01:34]} 47. fxg6 {[%emt 0:02:45]} Ke7 {[%emt 0:01:44]} 48. Rg1 {[%emt 0:07:12]} Ke6 {[%emt 0:01:10]} 49. Ke3 {[%emt 0:00:12]} Rd4 {[%emt 0:00:52]} 50. f4 {[%emt 0:06:01] Ke5} 1/2-1/2

[Event "72nd RUS-ch Higher League 2019"]
[Site "Yaroslavl"]
[Date "2019.07.04"]
[Round "7.7"]
[White "Grachev, Boris"]
[Black "Pridorozhni, Aleksei"]
[Result "1/2-1/2"]
[ECO "A06"]
[WhiteElo "2621"]
[BlackElo "2588"]
[Annotator "ChessBase"]
[PlyCount "53"]
[EventDate "2019.06.27"]
[EventType "swiss"]
[EventCountry "RUS"]
[SourceTitle "playchess.com"]
[Source "ChessBase"]
[SourceQuality "1"]
[TimeControl "40/5400+30:1800+30"]

1. Nf3 {[%emt 0:00:00]} d5 {[%emt 0:00:00]} 2. e3 {[%emt 0:00:00]} c5 {[%emt 0:00:15]} 3. b3 {[%emt 0:00:36]} Nc6 {[%emt 0:00:10]} 4. Bb2 {[%emt 0:02:01]} Nf6 {[%emt 0:01:08]} 5. Bb5 {[%emt 0:00:47]} Bd7 {[%emt 0:00:17]} 6. O-O {[%emt 0:02:38]} e6 {[%emt 0:01:00]} 7. c4 {[%emt 0:02:29]} a6 {[%emt 0:02:40]} 8. cxd5 {[%emt 0:14:55]} axb5 {[%emt 0:08:51]} 9. dxc6 {[%emt 0:00:06]} Bxc6 {[%emt 0:00:03]} 10. Ne5 {[%emt 0:00:27]} Be7 {[%emt 0:03:27]} 11. Nxc6 {[%emt 0:01:04]} bxc6 {[%emt 0:00:06]} 12. Nc3 {[%emt 0:08:23]} O-O {[%emt 0:00:53]} 13. Qc2 {[%emt 0:01:00]} Qd7 {[%emt 0:04:59]} 14. Rfd1 {[%emt 0:01:11]} Rfd8 {[%emt 0:01:44]} 15. Ne4 {[%emt 0:08:14]} Nxe4 {[%emt 0:05:38]} 16. Qxe4 {[%emt 0:05:17]} Bf8 {[%emt 0:00:19]} 17. h3 {[%emt 0:03:33]} Qb7 {[%emt 0:03:52]} 18. Qc2 {[%emt 0:03:34]} h6 {[%emt 0:07:37]} 19. d3 {[%emt 0:04:35]} Ra6 {[%emt 0:02:42]} 20. a3 {[%emt 0:02:29]} Rd7 {[%emt 0:02:08]} 21. Rd2 {[%emt 0:07:14]} Qa8 {[%emt 0:04:54]} 22. Rad1 {[%emt 0:00:51]} Raa7 {[%emt 0:01:29]} 23. Qc1 {[%emt 0:07:25]} Ra6 {[%emt 0:02:01]} 24. Qc2 {[%emt 0:00:35]} Raa7 {[%emt 0:00:10]} 25. Qc1 {[%emt 0:00:11]} Ra6 {[%emt 0:00:06]} 26. Qc2 {[%emt 0:00:18]} Raa7 {[%emt 0:00:06]} 27. Qc1 {[%emt 0:01:09]} 1/2-1/2